[Event "*** SCC Grand Prix: Titled Tuesday Blitz"]
[Site "Chess.com"]
[Date "2020.06.02"]
[Round "1"]
[White "bugbug01052018"]
[Black "Artem_Sadovsky"]
[Result "1-0"]
[WhiteElo "2208"]
[BlackElo "2525"]
[TimeControl "180+1"]
[EndTime "10:05:37 PDT"]
[Termination "bugbug01052018 won by resignation"]

1. d4 {[%clk 0:03:00.9]} 1... g6 {[%clk 0:02:55.1]} 2. c4 {[%clk 0:03:00.5]}
2... Bg7 {[%clk 0:02:55]} 3. Nf3 {[%clk 0:03:00.5]} 3... d6 {[%clk 0:02:55.2]}
4. g3 {[%clk 0:03:00.6]} 4... e5 {[%clk 0:02:55]} 5. Bg2 {[%clk 0:03:00.5]} 5...
e4 {[%clk 0:02:55.2]} 6. Nfd2 {[%clk 0:02:57.6]} 6... f5 {[%clk 0:02:55.3]} 7.
e3 {[%clk 0:02:56.7]} 7... Nf6 {[%clk 0:02:55.2]} 8. Nc3 {[%clk 0:02:56.8]} 8...
O-O {[%clk 0:02:55.4]} 9. Ne2 {[%clk 0:02:56.9]} 9... c6 {[%clk 0:02:53.4]} 10.
h4 {[%clk 0:02:56.6]} 10... d5 {[%clk 0:02:52.9]} 11. Nf4 {[%clk 0:02:54.4]}
11... a6 {[%clk 0:02:47.3]} 12. c5 {[%clk 0:02:52]} 12... Kf7 {[%clk 0:02:46]}
13. b3 {[%clk 0:02:48.5]} 13... h6 {[%clk 0:02:39.7]} 14. Ba3 {[%clk 0:02:46.8]}
14... g5 {[%clk 0:02:38.8]} 15. Nh5 {[%clk 0:02:46.6]} 15... f4 {[%clk
0:02:26.9]} 16. hxg5 {[%clk 0:02:41.6]} 16... Bg4 {[%clk 0:02:21.4]} 17. gxf6
{[%clk 0:02:35.3]} 17... Bxd1 {[%clk 0:02:19]} 18. fxg7 {[%clk 0:02:35.6]} 18...
Bxh5 {[%clk 0:02:03]} 19. gxf8=Q+ {[%clk 0:02:34.8]} 19... Qxf8 {[%clk
0:01:47.7]} 20. Rxh5 {[%clk 0:02:34.3]} 20... Kg6 {[%clk 0:01:42.6]} 21. Rh4
{[%clk 0:02:32.2]} 21... f3 {[%clk 0:01:38.1]} 22. Bh3 {[%clk 0:02:32.1]} 22...
a5 {[%clk 0:01:34.5]} 23. O-O-O {[%clk 0:02:32.1]} 23... Na6 {[%clk 0:01:33.3]}
24. Rh1 {[%clk 0:02:30.8]} 24... Nb4 {[%clk 0:01:26.9]} 25. Bxb4 {[%clk
0:02:30.7]} 25... axb4 {[%clk 0:01:26.8]} 26. Kb2 {[%clk 0:02:30.7]} 26... Qd8
{[%clk 0:01:14.6]} 27. Bg4 {[%clk 0:02:24.3]} 27... Qg5 {[%clk 0:00:50.8]} 28.
Be6 {[%clk 0:02:17.7]} 28... h5 {[%clk 0:00:48.1]} 29. Rxh5 {[%clk 0:02:16.2]}
29... Qxh5 {[%clk 0:00:49]} 30. Bf7+ {[%clk 0:02:16.3]} 30... Kxf7 {[%clk
0:00:46.8]} 31. Rxh5 {[%clk 0:02:16.1]} 31... Kg6 {[%clk 0:00:47.7]} 32. Rh4
{[%clk 0:02:14.5]} 32... Kg5 {[%clk 0:00:47.7]} 33. Nf1 {[%clk 0:02:13.9]} 33...
Rb8 {[%clk 0:00:44]} 34. Nh2 {[%clk 0:02:11.8]} 34... b6 {[%clk 0:00:44.2]} 35.
cxb6 {[%clk 0:02:06.1]} 35... Rxb6 {[%clk 0:00:45.1]} 36. Ng4 {[%clk 0:02:06.3]}
36... c5 {[%clk 0:00:42.4]} 37. Ne5 {[%clk 0:01:50.5]} 37... cxd4 {[%clk
0:00:39.9]} 38. exd4 {[%clk 0:01:51.4]} 38... Re6 {[%clk 0:00:37.1]} 39. Rf4
{[%clk 0:01:46.1]} 39... Rh6 {[%clk 0:00:29.9]} 40. Nf7+ {[%clk 0:01:45.1]}
40... Kg6 {[%clk 0:00:28.7]} 41. Nxh6 {[%clk 0:01:45.2]} 1-0

[Event "*** SCC Grand Prix: Titled Tuesday Blitz"]
[Site "Chess.com"]
[Date "2020.06.02"]
[Round "1"]
[White "BilodeauA"]
[Black "NZT72"]
[Result "1-0"]
[WhiteElo "2899"]
[BlackElo "2433"]
[TimeControl "180+1"]
[EndTime "10:05:38 PDT"]
[Termination "BilodeauA won on time"]

1. e4 {[%clk 0:03:00.9]} 1... e5 {[%clk 0:02:59.6]} 2. Nf3 {[%clk 0:02:59.3]}
2... Nc6 {[%clk 0:02:59.4]} 3. Bc4 {[%clk 0:03:00]} 3... Bc5 {[%clk 0:02:58.9]}
4. c3 {[%clk 0:02:59.1]} 4... Nf6 {[%clk 0:02:58.6]} 5. d3 {[%clk 0:02:59.6]}
5... d6 {[%clk 0:02:57.3]} 6. O-O {[%clk 0:02:59.7]} 6... h6 {[%clk 0:02:53.8]}
7. Re1 {[%clk 0:02:57.1]} 7... a5 {[%clk 0:02:42.1]} 8. Nbd2 {[%clk 0:02:49.9]}
8... O-O {[%clk 0:02:40.5]} 9. Nf1 {[%clk 0:02:49.8]} 9... Bb6 {[%clk
0:02:19.1]} 10. h3 {[%clk 0:02:43.4]} 10... Ne7 {[%clk 0:02:16.8]} 11. Bb3
{[%clk 0:02:40.7]} 11... Ng6 {[%clk 0:02:13.7]} 12. d4 {[%clk 0:02:40.7]} 12...
c6 {[%clk 0:02:02.4]} 13. Ng3 {[%clk 0:02:39.4]} 13... Re8 {[%clk 0:01:51.6]}
14. Be3 {[%clk 0:02:29.4]} 14... Be6 {[%clk 0:01:05.4]} 15. Bc2 {[%clk
0:02:23.8]} 15... Qc7 {[%clk 0:00:40.3]} 16. Qd2 {[%clk 0:02:23.6]} 16... Kh7
{[%clk 0:00:32.5]} 17. a4 {[%clk 0:02:14.9]} 17... Rad8 {[%clk 0:00:31.4]} 18.
Rad1 {[%clk 0:02:14]} 18... Bc8 {[%clk 0:00:12.6]} 19. Qe2 {[%clk 0:02:08.4]}
19... Be6 {[%clk 0:00:07.6]} 20. Nh2 {[%clk 0:02:07.9]} 20... Kg8 {[%clk
0:00:05.4]} 21. Nh5 {[%clk 0:02:00.4]} 21... Nxh5 {[%clk 0:00:04.6]} 22. Qxh5
{[%clk 0:02:01.3]} 22... exd4 {[%clk 0:00:02.9]} 23. cxd4 {[%clk 0:02:00.6]}
23... d5 {[%clk 0:00:03.4]} 24. e5 {[%clk 0:01:59.6]} 24... Nf8 {[%clk
0:00:03.7]} 25. Ng4 {[%clk 0:01:57.7]} 25... c5 {[%clk 0:00:03]} 26. Bxh6 {[%clk
0:01:52.3]} 26... gxh6 {[%clk 0:00:03.9]} 27. Nxh6+ {[%clk 0:01:43.9]} 27... Kg7
{[%clk 0:00:03.7]} 28. Rd3 {[%clk 0:01:43.8]} 28... Ng6 {[%clk 0:00:03.5]} 29.
Rg3 {[%clk 0:01:44]} 29... Rh8 {[%clk 0:00:01.2]} 30. Bxg6 {[%clk 0:01:41.9]}
1-0

[Event "*** SCC Grand Prix: Titled Tuesday Blitz"]
[Site "Chess.com"]
[Date "2020.06.02"]
[Round "1"]
[White "Gabrielian_Artur"]
[Black "killer311"]
[Result "1-0"]
[WhiteElo "2732"]
[BlackElo "2376"]
[TimeControl "180+1"]
[EndTime "10:05:38 PDT"]
[Termination "Gabrielian_Artur won by resignation"]

1. e4 {[%clk 0:03:00.9]} 1... c6 {[%clk 0:02:59]} 2. d4 {[%clk 0:02:59.7]} 2...
d5 {[%clk 0:02:59.9]} 3. Nd2 {[%clk 0:02:59.4]} 3... dxe4 {[%clk 0:03:00]} 4.
Nxe4 {[%clk 0:02:59.5]} 4... Bf5 {[%clk 0:03:00.5]} 5. Ng3 {[%clk 0:02:59.5]}
5... Bg6 {[%clk 0:03:00.5]} 6. c3 {[%clk 0:02:59.9]} 6... e6 {[%clk 0:02:58.7]}
7. Nh3 {[%clk 0:02:58.2]} 7... Nf6 {[%clk 0:02:58.2]} 8. Nf4 {[%clk 0:02:58.1]}
8... Bd6 {[%clk 0:02:57.9]} 9. h4 {[%clk 0:02:57.6]} 9... Bxf4 {[%clk
0:02:41.5]} 10. Bxf4 {[%clk 0:02:56.7]} 10... h6 {[%clk 0:02:41.3]} 11. Qb3
{[%clk 0:02:54.1]} 11... Qb6 {[%clk 0:02:37.5]} 12. Qa3 {[%clk 0:02:53.7]} 12...
Nbd7 {[%clk 0:02:34.9]} 13. Be2 {[%clk 0:02:48.9]} 13... c5 {[%clk 0:02:28.7]}
14. Rd1 {[%clk 0:02:45.2]} 14... O-O {[%clk 0:02:24]} 15. dxc5 {[%clk
0:02:41.5]} 15... Nxc5 {[%clk 0:02:19.3]} 16. h5 {[%clk 0:02:08.3]} 16... Bh7
{[%clk 0:01:56.3]} 17. Be3 {[%clk 0:02:08]} 17... Rac8 {[%clk 0:01:46.4]} 18. b4
{[%clk 0:02:02.9]} 18... Rfd8 {[%clk 0:01:31.9]} 19. Rxd8+ {[%clk 0:01:57.8]}
19... Rxd8 {[%clk 0:01:28.6]} 20. Bxc5 {[%clk 0:01:53.3]} 20... Qc6 {[%clk
0:01:27.5]} 21. O-O {[%clk 0:01:49.8]} 21... Ne4 {[%clk 0:01:25]} 22. Bf3 {[%clk
0:01:43.3]} 22... Rd3 {[%clk 0:01:24.2]} 23. Bxe4 {[%clk 0:01:38.7]} 23... Bxe4
{[%clk 0:01:23.5]} 24. Nxe4 {[%clk 0:01:38.8]} 24... Qxe4 {[%clk 0:01:23.9]} 25.
Qxa7 {[%clk 0:01:37.5]} 25... Rxc3 {[%clk 0:01:22.7]} 26. Qb8+ {[%clk
0:01:33.8]} 26... Kh7 {[%clk 0:01:22]} 27. Qd6 {[%clk 0:01:32.7]} 27... Rd3
{[%clk 0:01:18.1]} 28. Qe7 {[%clk 0:01:23.6]} 28... f6 {[%clk 0:01:15.4]} 29.
Qf7 {[%clk 0:01:20.8]} 29... Rd5 {[%clk 0:01:14.7]} 30. Qg6+ {[%clk 0:01:13.3]}
30... Qxg6 {[%clk 0:01:11.6]} 31. hxg6+ {[%clk 0:01:14.2]} 31... Kxg6 {[%clk
0:01:12.4]} 32. a4 {[%clk 0:01:14.3]} 32... e5 {[%clk 0:01:05.2]} 33. a5 {[%clk
0:01:13.3]} 33... Rd3 {[%clk 0:01:05]} 34. Rb1 {[%clk 0:01:10.9]} 34... e4
{[%clk 0:01:04]} 35. b5 {[%clk 0:01:09.9]} 35... f5 {[%clk 0:01:04.1]} 36. a6
{[%clk 0:01:09.5]} 36... bxa6 {[%clk 0:01:04.1]} 37. b6 {[%clk 0:01:09.5]} 37...
Rd5 {[%clk 0:01:00.4]} 38. b7 {[%clk 0:01:09.1]} 1-0

[Event "*** SCC Grand Prix: Titled Tuesday Blitz"]
[Site "Chess.com"]
[Date "2020.06.02"]
[Round "1"]
[White "ferdipy"]
[Black "Semen_Khanin"]
[Result "0-1"]
[WhiteElo "2347"]
[BlackElo "2699"]
[TimeControl "180+1"]
[EndTime "10:05:39 PDT"]
[Termination "Semen_Khanin won by resignation"]

1. e4 {[%clk 0:02:59.9]} 1... c5 {[%clk 0:02:58.7]} 2. Nf3 {[%clk 0:02:57]} 2...
e6 {[%clk 0:02:59.1]} 3. c3 {[%clk 0:02:56.1]} 3... d5 {[%clk 0:02:52.3]} 4. e5
{[%clk 0:02:55.2]} 4... d4 {[%clk 0:02:49.1]} 5. Bb5+ {[%clk 0:02:43.7]} 5...
Bd7 {[%clk 0:02:47.6]} 6. Qe2 {[%clk 0:02:38.1]} 6... a6 {[%clk 0:02:33.5]} 7.
Bxd7+ {[%clk 0:02:37.7]} 7... Qxd7 {[%clk 0:02:33.9]} 8. cxd4 {[%clk 0:02:36.2]}
8... cxd4 {[%clk 0:02:33.8]} 9. d3 {[%clk 0:02:36.9]} 9... Nc6 {[%clk 0:02:32]}
10. Nbd2 {[%clk 0:02:20.7]} 10... Nge7 {[%clk 0:02:31]} 11. Nc4 {[%clk
0:02:18.6]} 11... Nd5 {[%clk 0:02:31]} 12. O-O {[%clk 0:02:00.6]} 12... b5
{[%clk 0:02:29.5]} 13. Ncd2 {[%clk 0:01:58.5]} 13... Be7 {[%clk 0:02:29.7]} 14.
Qe4 {[%clk 0:01:50.7]} 14... O-O {[%clk 0:01:59.7]} 15. Nxd4 {[%clk 0:01:48.8]}
15... Nxd4 {[%clk 0:01:53.7]} 16. Qxd4 {[%clk 0:01:48.9]} 16... Rfd8 {[%clk
0:01:52.9]} 17. Nf3 {[%clk 0:01:39.6]} 17... Nb4 {[%clk 0:01:52.6]} 18. Qg4
{[%clk 0:01:20.5]} 18... Qxd3 {[%clk 0:01:48]} 19. Bh6 {[%clk 0:01:12.1]} 19...
Qg6 {[%clk 0:01:47.5]} 20. Qxg6 {[%clk 0:01:11.1]} 20... hxg6 {[%clk 0:01:47.7]}
21. Bf4 {[%clk 0:01:11.3]} 21... Nd3 {[%clk 0:01:46.6]} 22. Bc1 {[%clk
0:01:09.5]} 22... Rac8 {[%clk 0:01:42.8]} 23. Rd1 {[%clk 0:01:06.7]} 23... Nxe5
{[%clk 0:01:39.5]} 24. Rxd8+ {[%clk 0:01:01.6]} 24... Rxd8 {[%clk 0:01:39.6]}
25. Nd2 {[%clk 0:00:59.7]} 25... Bg5 {[%clk 0:01:33.7]} 26. Nf1 {[%clk
0:00:55.3]} 26... Rd1 {[%clk 0:01:20.9]} 27. Bxg5 {[%clk 0:00:49.6]} 27... Rxa1
{[%clk 0:01:20]} 28. g3 {[%clk 0:00:48.7]} 28... Rxa2 {[%clk 0:01:19.5]} 29. Bc1
{[%clk 0:00:48.1]} 29... Nd3 {[%clk 0:01:17.3]} 0-1

[Event "*** SCC Grand Prix: Titled Tuesday Blitz"]
[Site "Chess.com"]
[Date "2020.06.02"]
[Round "1"]
[White "DortmundCity"]
[Black "zala02"]
[Result "1-0"]
[WhiteElo "2581"]
[BlackElo "2243"]
[TimeControl "180+1"]
[EndTime "10:05:41 PDT"]
[Termination "DortmundCity won by resignation"]

1. e4 {[%clk 0:03:00.9]} 1... c5 {[%clk 0:02:59.2]} 2. Nf3 {[%clk 0:02:54.5]}
2... Nc6 {[%clk 0:02:58.7]} 3. d4 {[%clk 0:02:54.3]} 3... cxd4 {[%clk
0:02:58.3]} 4. Nxd4 {[%clk 0:02:55.2]} 4... Nf6 {[%clk 0:02:58.5]} 5. Nc3 {[%clk
0:02:55]} 5... e5 {[%clk 0:02:58.7]} 6. Ndb5 {[%clk 0:02:54.9]} 6... d6 {[%clk
0:02:57.8]} 7. Bg5 {[%clk 0:02:52]} 7... a6 {[%clk 0:02:57.4]} 8. Na3 {[%clk
0:02:51.8]} 8... b5 {[%clk 0:02:57.7]} 9. Nd5 {[%clk 0:02:52.1]} 9... Be7 {[%clk
0:02:56.7]} 10. Bxf6 {[%clk 0:02:52]} 10... Bxf6 {[%clk 0:02:56.9]} 11. c3
{[%clk 0:02:52.6]} 11... Bg5 {[%clk 0:02:46.1]} 12. Nc2 {[%clk 0:02:49.8]} 12...
Rb8 {[%clk 0:02:44.5]} 13. a4 {[%clk 0:02:48.9]} 13... bxa4 {[%clk 0:02:27.9]}
14. Ncb4 {[%clk 0:02:49]} 14... Nxb4 {[%clk 0:02:24.6]} 15. Nxb4 {[%clk
0:02:48.2]} 15... O-O {[%clk 0:02:07.3]} 16. Nc6 {[%clk 0:02:44.9]} 16... Qb6
{[%clk 0:02:02.5]} 17. Nxb8 {[%clk 0:02:43.8]} 17... Qxb8 {[%clk 0:02:03.4]} 18.
Qc2 {[%clk 0:02:40.7]} 18... Be6 {[%clk 0:01:40.4]} 19. Bxa6 {[%clk 0:02:39.1]}
19... Bb3 {[%clk 0:01:40]} 20. Qe2 {[%clk 0:02:38.8]} 20... f5 {[%clk
0:01:18.3]} 21. Bc4+ {[%clk 0:02:30.8]} 21... Kh8 {[%clk 0:01:17.3]} 22. Bxb3
{[%clk 0:02:29.1]} 22... Qxb3 {[%clk 0:01:16.3]} 23. exf5 {[%clk 0:02:25.2]}
23... Rxf5 {[%clk 0:01:17.2]} 24. O-O {[%clk 0:02:23.9]} 24... h6 {[%clk
0:01:13.2]} 25. Ra3 {[%clk 0:02:10]} 25... Qf7 {[%clk 0:01:04.3]} 26. Rxa4
{[%clk 0:02:07.8]} 26... Bf4 {[%clk 0:01:04.3]} 27. g3 {[%clk 0:02:06.9]} 27...
Bg5 {[%clk 0:01:02.2]} 28. Qc4 {[%clk 0:01:59.2]} 28... Qe8 {[%clk 0:00:42.4]}
29. Rfa1 {[%clk 0:01:55.7]} 29... Rf8 {[%clk 0:00:36.4]} 30. Ra8 {[%clk
0:01:47.3]} 30... Qxa8 {[%clk 0:00:36.1]} 31. Rxa8 {[%clk 0:01:48.2]} 31... Rxa8
{[%clk 0:00:36.5]} 32. Qd5 {[%clk 0:01:47.9]} 32... Ra1+ {[%clk 0:00:29.7]} 33.
Kg2 {[%clk 0:01:48]} 33... Rb1 {[%clk 0:00:30.1]} 34. b4 {[%clk 0:01:44.4]}
34... Rc1 {[%clk 0:00:26.6]} 35. h4 {[%clk 0:01:39.9]} 35... Bf6 {[%clk
0:00:22.9]} 36. c4 {[%clk 0:01:39]} 1-0

[Event "*** SCC Grand Prix: Titled Tuesday Blitz"]
[Site "Chess.com"]
[Date "2020.06.02"]
[Round "1"]
[White "Baron_von_Koenig"]
[Black "reniite"]
[Result "1-0"]
[WhiteElo "2461"]
[BlackElo "1816"]
[TimeControl "180+1"]
[EndTime "10:05:46 PDT"]
[Termination "Baron_von_Koenig won by checkmate"]

1. Nc3 {[%clk 0:03:00.9]} 1... d5 {[%clk 0:02:56.5]} 2. e4 {[%clk 0:03:00.2]}
2... dxe4 {[%clk 0:02:46.9]} 3. Nxe4 {[%clk 0:02:59.7]} 3... Nd7 {[%clk
0:02:35.2]} 4. Bc4 {[%clk 0:02:55.1]} 4... e6 {[%clk 0:02:35.4]} 5. d3 {[%clk
0:02:53.1]} 5... Ngf6 {[%clk 0:02:35.5]} 6. Bb3 {[%clk 0:02:41.1]} 6... Be7
{[%clk 0:02:29.1]} 7. Nf3 {[%clk 0:02:40.5]} 7... O-O {[%clk 0:02:28.8]} 8. O-O
{[%clk 0:02:40.5]} 8... Nxe4 {[%clk 0:02:27.9]} 9. dxe4 {[%clk 0:02:39.8]} 9...
Nc5 {[%clk 0:02:28.8]} 10. Qe2 {[%clk 0:02:33.1]} 10... b6 {[%clk 0:02:27.6]}
11. Bc4 {[%clk 0:02:31]} 11... Bb7 {[%clk 0:02:25.2]} 12. Rd1 {[%clk 0:02:24.9]}
12... Qc8 {[%clk 0:01:55.6]} 13. Bg5 {[%clk 0:02:23.5]} 13... Bxg5 {[%clk
0:01:49.1]} 14. Nxg5 {[%clk 0:02:23]} 14... h6 {[%clk 0:01:50]} 15. Nf3 {[%clk
0:02:15.1]} 15... Nxe4 {[%clk 0:01:47.7]} 16. Ne5 {[%clk 0:02:13.3]} 16... Nd6
{[%clk 0:01:45.8]} 17. Bd3 {[%clk 0:02:12.4]} 17... a5 {[%clk 0:01:36.8]} 18.
Qh5 {[%clk 0:01:57.7]} 18... Ba6 {[%clk 0:01:30.6]} 19. c4 {[%clk 0:01:57.1]}
19... Nf5 {[%clk 0:00:47.5]} 20. b3 {[%clk 0:01:43.2]} 20... g6 {[%clk
0:00:33.3]} 21. Qh3 {[%clk 0:01:42.2]} 21... Kg7 {[%clk 0:00:31.7]} 22. Bxf5
{[%clk 0:01:30.6]} 22... exf5 {[%clk 0:00:31.8]} 23. Rd7 {[%clk 0:01:30.6]}
23... Bb7 {[%clk 0:00:17.7]} 24. Qg3 {[%clk 0:01:21.7]} 24... Kf6 {[%clk
0:00:15.5]} 25. Qc3 {[%clk 0:01:19.5]} 25... Ke6 {[%clk 0:00:14.2]} 26. Rad1
{[%clk 0:01:17.3]} 26... f6 {[%clk 0:00:14.2]} 27. Nxg6 {[%clk 0:01:15.6]} 27...
Rg8 {[%clk 0:00:13.6]} 28. Re7# {[%clk 0:01:15.2]} 1-0

[Event "*** SCC Grand Prix: Titled Tuesday Blitz"]
[Site "Chess.com"]
[Date "2020.06.02"]
[Round "1"]
[White "ZEN-22"]
[Black "VMikhalevski"]
[Result "0-1"]
[WhiteElo "2380"]
[BlackElo "2739"]
[TimeControl "180+1"]
[EndTime "10:05:50 PDT"]
[Termination "VMikhalevski won by resignation"]

1. e4 {[%clk 0:02:50.5]} 1... e5 {[%clk 0:02:59.2]} 2. Nc3 {[%clk 0:02:43.8]}
2... Nf6 {[%clk 0:02:57.7]} 3. f4 {[%clk 0:02:42.6]} 3... d5 {[%clk 0:02:56.8]}
4. fxe5 {[%clk 0:02:41.5]} 4... Nxe4 {[%clk 0:02:56.2]} 5. Qf3 {[%clk
0:02:41.4]} 5... f5 {[%clk 0:02:50]} 6. d3 {[%clk 0:02:30.4]} 6... Nxc3 {[%clk
0:02:45]} 7. bxc3 {[%clk 0:02:29.6]} 7... Be7 {[%clk 0:02:42]} 8. d4 {[%clk
0:02:28.8]} 8... Kf8 {[%clk 0:02:41]} 9. Bd3 {[%clk 0:02:27.1]} 9... Kg8 {[%clk
0:02:41.9]} 10. Bxf5 {[%clk 0:02:26]} 10... c6 {[%clk 0:02:26.5]} 11. Rb1 {[%clk
0:02:23.5]} 11... Na6 {[%clk 0:02:23.3]} 12. Bxc8 {[%clk 0:02:16.7]} 12... Qxc8
{[%clk 0:02:22.2]} 13. Nh3 {[%clk 0:02:17.6]} 13... Nc7 {[%clk 0:02:19.1]} 14.
O-O {[%clk 0:02:14.4]} 14... Qe6 {[%clk 0:02:05.5]} 15. Rxb7 {[%clk 0:02:12.9]}
15... Rf8 {[%clk 0:02:05.3]} 16. Nf4 {[%clk 0:01:46.1]} 16... Qc8 {[%clk
0:01:58.1]} 17. Rxa7 {[%clk 0:01:45.6]} 17... Qb8 {[%clk 0:01:52.2]} 18. Ba3
{[%clk 0:01:24]} 18... Qxa7 {[%clk 0:01:41.3]} 19. Bxe7 {[%clk 0:01:23.6]} 19...
Rf7 {[%clk 0:01:41.7]} 20. Bc5 {[%clk 0:01:22.4]} 20... Qa6 {[%clk 0:01:37]} 21.
Qg4 {[%clk 0:01:15.5]} 21... h5 {[%clk 0:01:26.4]} 22. Qh3 {[%clk 0:00:46.8]}
22... Rh6 {[%clk 0:01:25.6]} 23. Nd3 {[%clk 0:00:46.2]} 23... Rxf1+ {[%clk
0:01:20.7]} 24. Kxf1 {[%clk 0:00:47.1]} 24... Ne6 {[%clk 0:01:19.8]} 25. Bd6
{[%clk 0:00:45.6]} 25... Qxa2 {[%clk 0:01:18.5]} 26. Ne1 {[%clk 0:00:43.1]}
26... Qa1 {[%clk 0:00:57.7]} 27. Ke2 {[%clk 0:00:34.4]} 27... Nf4+ {[%clk
0:00:53.4]} 0-1

[Event "*** SCC Grand Prix: Titled Tuesday Blitz"]
[Site "Chess.com"]
[Date "2020.06.02"]
[Round "1"]
[White "MilanJeremic"]
[Black "suyu28"]
[Result "0-1"]
[WhiteElo "2240"]
[BlackElo "2580"]
[TimeControl "180+1"]
[EndTime "10:05:52 PDT"]
[Termination "suyu28 won on time"]

1. d4 {[%clk 0:03:00.5]} 1... Nf6 {[%clk 0:02:59.7]} 2. Nf3 {[%clk 0:02:58.9]}
2... d5 {[%clk 0:02:59.4]} 3. g3 {[%clk 0:02:57.9]} 3... c5 {[%clk 0:02:59]} 4.
e3 {[%clk 0:02:56.9]} 4... Nc6 {[%clk 0:02:57.8]} 5. Bg2 {[%clk 0:02:56.1]} 5...
Bg4 {[%clk 0:02:57.6]} 6. O-O {[%clk 0:02:55.2]} 6... e6 {[%clk 0:02:58]} 7. b3
{[%clk 0:02:54.4]} 7... Bd6 {[%clk 0:02:57.6]} 8. Bb2 {[%clk 0:02:53.3]} 8...
O-O {[%clk 0:02:57.7]} 9. Nbd2 {[%clk 0:02:51]} 9... cxd4 {[%clk 0:02:57.6]} 10.
exd4 {[%clk 0:02:49.1]} 10... Ne4 {[%clk 0:02:57.4]} 11. h3 {[%clk 0:02:43.9]}
11... Bh5 {[%clk 0:02:57.3]} 12. Qe1 {[%clk 0:02:40.7]} 12... f5 {[%clk
0:02:45.3]} 13. c3 {[%clk 0:02:36.2]} 13... Qc7 {[%clk 0:02:43.9]} 14. Rc1
{[%clk 0:02:16.8]} 14... Rae8 {[%clk 0:02:28.8]} 15. c4 {[%clk 0:02:11.6]} 15...
Bb4 {[%clk 0:02:28.4]} 16. Qe3 {[%clk 0:02:00.4]} 16... f4 {[%clk 0:02:20.1]}
17. gxf4 {[%clk 0:01:58.5]} 17... Rxf4 {[%clk 0:02:19.5]} 18. a3 {[%clk
0:01:44.5]} 18... Bd6 {[%clk 0:02:10.4]} 19. c5 {[%clk 0:01:40.9]} 19... Be7
{[%clk 0:02:08.1]} 20. Nxe4 {[%clk 0:01:29.7]} 20... Rxe4 {[%clk 0:02:07.8]} 21.
Qc3 {[%clk 0:01:24.2]} 21... Rf8 {[%clk 0:02:00]} 22. Rce1 {[%clk 0:01:19.6]}
22... Bg6 {[%clk 0:01:51.6]} 23. Ne5 {[%clk 0:01:02.7]} 23... Nxe5 {[%clk
0:01:40.9]} 24. Rxe4 {[%clk 0:00:52.1]} 24... Bxe4 {[%clk 0:01:41.8]} 25. Bxe4
{[%clk 0:00:32.5]} 25... dxe4 {[%clk 0:01:41.6]} 26. dxe5 {[%clk 0:00:32.2]}
26... Qxc5 {[%clk 0:01:37.6]} 27. Qxc5 {[%clk 0:00:22.3]} 27... Bxc5 {[%clk
0:01:37.2]} 28. Kg2 {[%clk 0:00:22]} 28... Rf3 {[%clk 0:01:36.6]} 29. b4 {[%clk
0:00:17.2]} 29... Bb6 {[%clk 0:01:36.7]} 0-1

[Event "*** SCC Grand Prix: Titled Tuesday Blitz"]
[Site "Chess.com"]
[Date "2020.06.02"]
[Round "1"]
[White "mjray79"]
[Black "Szparu"]
[Result "0-1"]
[WhiteElo "2303"]
[BlackElo "2640"]
[TimeControl "180+1"]
[EndTime "10:05:53 PDT"]
[Termination "Szparu won by resignation"]

1. d4 {[%clk 0:03:00.9]} 1... Nf6 {[%clk 0:02:59.9]} 2. c4 {[%clk 0:03:01.3]}
2... g6 {[%clk 0:02:59.7]} 3. Nc3 {[%clk 0:03:00.6]} 3... d5 {[%clk 0:02:59.7]}
4. cxd5 {[%clk 0:02:59.2]} 4... Nxd5 {[%clk 0:03:00.6]} 5. e4 {[%clk 0:02:59.7]}
5... Nxc3 {[%clk 0:03:00.5]} 6. bxc3 {[%clk 0:03:00.6]} 6... Bg7 {[%clk
0:02:58.6]} 7. Bc4 {[%clk 0:03:01]} 7... O-O {[%clk 0:02:58.5]} 8. Be3 {[%clk
0:03:01.3]} 8... c5 {[%clk 0:02:58.7]} 9. Ne2 {[%clk 0:03:01.7]} 9... Nc6 {[%clk
0:02:56.4]} 10. O-O {[%clk 0:03:01.1]} 10... b6 {[%clk 0:02:55.3]} 11. h4 {[%clk
0:03:00.8]} 11... cxd4 {[%clk 0:02:52]} 12. cxd4 {[%clk 0:03:00]} 12... Bb7
{[%clk 0:02:52.5]} 13. h5 {[%clk 0:02:58.6]} 13... Rc8 {[%clk 0:02:51.5]} 14. e5
{[%clk 0:02:47.3]} 14... Na5 {[%clk 0:02:47.9]} 15. Bd3 {[%clk 0:02:45.9]} 15...
Nc4 {[%clk 0:02:48.1]} 16. Bf4 {[%clk 0:02:37.6]} 16... Nb2 {[%clk 0:02:44.9]}
17. Qb3 {[%clk 0:02:32.9]} 17... Nxd3 {[%clk 0:02:45]} 18. Qxd3 {[%clk
0:02:33.8]} 18... Qd5 {[%clk 0:02:42.7]} 19. f3 {[%clk 0:02:31.5]} 19... Rfd8
{[%clk 0:02:42.3]} 20. Rad1 {[%clk 0:02:26.8]} 20... Qc4 {[%clk 0:02:31.4]} 21.
Qe3 {[%clk 0:02:24]} 21... Qxa2 {[%clk 0:01:54.6]} 22. Ra1 {[%clk 0:02:21.1]}
22... Qd5 {[%clk 0:01:51.7]} 23. Rxa7 {[%clk 0:02:19.1]} 23... b5 {[%clk
0:01:44.3]} 24. Nc3 {[%clk 0:02:12.8]} 24... Qxd4 {[%clk 0:01:43.7]} 25. Qxd4
{[%clk 0:01:50.2]} 25... Rxd4 {[%clk 0:01:43.4]} 26. Nxb5 {[%clk 0:01:50.1]}
26... Rxf4 {[%clk 0:01:27.6]} 27. Rxb7 {[%clk 0:01:49.6]} 27... Bxe5 {[%clk
0:00:28.9]} 28. hxg6 {[%clk 0:01:47]} 28... hxg6 {[%clk 0:00:25.9]} 29. Rxe7
{[%clk 0:01:46.4]} 29... Bf6 {[%clk 0:00:25.7]} 30. Re4 {[%clk 0:01:17.6]} 30...
Rxe4 {[%clk 0:00:24.8]} 31. fxe4 {[%clk 0:01:18.5]} 31... Kg7 {[%clk 0:00:24.9]}
32. Nd6 {[%clk 0:01:17.5]} 32... Bd4+ {[%clk 0:00:24.7]} 33. Kh2 {[%clk
0:01:10.8]} 33... Be5+ {[%clk 0:00:24.3]} 0-1